Cogmind - Beta 16.1 @@@ ROGUE MODE // 2026.04.05 @ 13:14:58 Player: WetterLettuce Result: Destroyed by HT-WWU(R) with Subdweller Laser Performance ------------- Evolutions (0) 0 Regions Visited (3) 600 Robots Destroyed (21) 105 Value Destroyed (531) 531 Prototype IDs (0) 0 Alien Tech Used (0) 0 Bonus (0) 0 TOTAL SCORE: 1236 Bonus ------- None Cogmind --------- Core Integrity 0/250 Matter 277/300 Energy 160/160 System Corruption 3% Temperature Cool (6) Movement Rolling (120) Ox1 Location -10/Subcaves Parts ------- > --- POWER (1) -------- Light Nuclear Core > --- PROPULSION (2) --- Subdweller Monowheel > --- UTILITY (2) ------ Large Storage Unit Terrain Scanner > --- WEAPON (2) ------- Assault Rifle Subdweller Machine Gun > --- INVENTORY (15) --- Light Treads Light Treads Subdweller Monowheel Small Storage Unit Medium Matter Pod (100) Seismic Detector Small Laser Light Assault Rifle Light Assault Rifle Grenade Launcher Grenade Launcher Rocket Launcher Peak State ------------ > --- POWER ------------ Light Nuclear Core > --- PROPULSION ------- Compact Wheel Subdweller Monowheel > --- UTILITY ---------- Large Storage Unit Terrain Scanner > --- WEAPON ----------- Assault Rifle Subdweller Machine Gun > --- INVENTORY -------- Light Treads Light Treads Small Storage Unit Medium Matter Pod Seismic Detector Small Laser Light Assault Rifle Light Assault Rifle Grenade Launcher Grenade Launcher Rocket Launcher [Rating: 12] Favorites ----------- Power Light Ion Engine Engine Light Ion Engine Power Core Light Nuclear Core Propulsion Compact Wheel Wheel Compact Wheel Utility Large Storage Unit Device Terrain Scanner Storage Large Storage Unit Weapon Assault Rifle Ballistic Gun Assault Rifle Build | -11 -10 -10 -10 ------- Run | Yrd Mat Min Sub Slots Evolved . | . . . . Power . | . . . . Propulsion . | . . . . Utility . | . . . . Weapon . | . . . . Parts Attached 14 | 6 1 4 3 Power 3 | 1 . 1 1 Engine 2 | 1 . 1 . Core 1 | . . . 1 Reactor . | . . . . Propulsion 4 | 2 . 1 1 Treads . | . . . . Leg . | . . . . Wheel 4 | 2 . 1 1 Hover . | . . . . Flight . | . . . . Utility 3 | 1 1 1 . Device 1 | . . 1 . Storage 2 | 1 1 . . Processor . | . . . . Hackware . | . . . . Protection . | . . . . Artifact . | . . . . Weapon 4 | 2 . 1 1 Energy Gun . | . . . . Energy Cannon . | . . . . Ballistic Gun 4 | 2 . 1 1 Ballistic Cannon . | . . . . Launcher . | . . . . Special Weapon . | . . . . Impact Weapon . | . . . . Slashing Weapon . | . . . . Piercing Weapon . | . . . . Special Melee Weapon . | . . . . Unidentified Prototypes . | . . . . Parts Lost 6 | . . 2 4 Power 1 | . . . 1 Propulsion 3 | . . 1 2 Utility . | . . . . Weapon 2 | . . 1 1 Highest Loss Streak 3 | . . 1 3 To Critical Strikes . | . . . . Average Backups 10 | 1 9 11 12 Power 1 | . 1 1 . Propulsion 2 | . 2 2 2 Utility 2 | . 2 3 3 Weapon 4 | . 2 4 6 Tool/Special . | . . . . Unused Backups 9 | . . . 9 Power . | . . . . Propulsion 2 | . . . 2 Utility 1 | . . . 1 Weapon 6 | . . . 6 Tool/Special . | . . . . Average Slot Usage (%) 92 | . 85 99 94 Engine 13 | . 14 14 10 Wheel 27 | . 28 27 24 Device 7 | . . 14 14 Storage 14 | . 14 14 14 Ballistic Gun 28 | . 28 28 28 Peak Build Rating 12 | 6 7 8 12 Average Rating 7 | 5 6 7 8 On Entrance 5 | . 6 7 8 Avg Prop Armor Cover (%) . | . . . . Naked Turns . | . . . . Heaviest Build 32 | 14 29 28 32 Greatest Support 36 | 26 26 32 36 Greatest Overweight (x) 1 | . 1 1 1 Average Overweight (x) . | . . . . Largest Inventory Capacity 15 | 8 15 15 15 Average Capacity 14 | 7 13 15 15 Most Carried 14 | 4 12 12 14 Average Carried 10 | 1 9 11 12 Final Capacity 15 | 8 15 15 15 Final Carried 12 | 4 12 12 12 Class Distribution -------------------- 100% | Mutant Dominant Class ---------------- Mutant | -10/Materials Mutant | -10/Mines Mutant | -10/Subcaves Resources | -11 -10 -10 -10 ----------- Run | Yrd Mat Min Sub Matter Collected 795 | 240 292 133 130 Remotely . | . . . . Salvage Created 681 | . 334 150 197 Parts 43 | . 20 12 11 Haulers Intercepted . | . . . . Recyclers Shooed . | . . . . Parts Field Recycled . | . . . . Retrieved Matter . | . . . . Parts Self-Destructed 6 | . . . 6 Prevented . | . . . . Parts Restored . | . . . . Kills | -11 -10 -10 -10 ------- Run | Yrd Mat Min Sub Combat Hostiles Destroyed 18 | . 9 5 4 Guns 18 | . 9 5 4 Classes Destroyed 4 | . 3 . 1 Watcher 3 | . 3 . . Swarmer 8 | . 5 3 . Grunt 6 | . 4 2 . Subdweller 4 | . . . 4 Best Kill Streak 4 | . 4 3 2 Combat Bots Only 3 | . 3 3 2 Max Kills in Single Turn 2 | . 2 1 1 Gunslinging 1 | . 1 . . Exploded . | . . . . Melee . | . . . . Uniques/NPCs Destroyed . | . . . . Combat | -11 -10 -10 -10 -------- Run | Yrd Mat Min Sub Hostile Shots Fired 96 | . 55 12 29 Missed 31 | . 19 1 11 Hits 65 | . 36 11 18 Projectile 65 | . 36 11 18 Critical Strikes 1 | . . . 1 Damage Taken 861 | . 365 112 384 Core 268 | . 125 9 134 Absorbed by Shields . | . . . . Core Remaining (%) 100 | 100 . . . Volleys Fired 60 | . 32 9 19 Largest 2 | . 2 2 2 Hottest 50 | . 40 40 50 Shots Fired 120 | . 64 17 39 Gun 120 | . 64 17 39 Cannon . | . . . . Launcher . | . . . . Special . | . . . . Kinetic 120 | . 64 17 39 Thermal . | . . . . Explosive . | . . . . Electromagnetic . | . . . . Robot Hit Streak 19 | . 9 4 19 Robot Miss Streak 5 | . 5 2 1 Penetration Max . | . . . . Secondary Targets 1 | . 1 . . Max Gunslinging Chain 1 | . 1 . . Shots Hit Robots 82 | . 38 10 34 Core Hits 35 | . 19 8 8 Critical Kills 1 | . . . 1 Critical Parts Destroyed . | . . . . Critical Strikes 1 | . . . 1 Destroy 1 | . . . 1 Melee Attacks . | . . . . Impact . | . . . . Slashing . | . . . . Piercing . | . . . . Sneak Attacks . | . . . . Combat Hostiles . | . . . . Follow-up Attacks . | . . . . Damage Inflicted 982 | . 463 125 394 Guns 982 | . 463 125 394 Cannons . | . . . . Explosions . | . . . . Melee . | . . . . Ramming . | . . . . Kinetic 982 | . 463 125 394 Thermal . | . . . . Explosive . | . . . . Electromagnetic . | . . . . Impact . | . . . . Slashing . | . . . . Piercing . | . . . . Highest Corruption 3 | . 3 3 3 Average Corruption 2 | . 2 3 3 Corruption Purged . | . . . . Corruption Blocked . | . . . . Effects 18 | . 3 10 5 Message Errors 2 | . . 2 . Matter Fused 8 | . 1 4 3 Heat Flow Errors 2 | . . 2 . Energy Discharges 2 | . 1 1 . Parts Rejected 1 | . . 1 . Data Loss (minor) 1 | . 1 . . Data Loss (major) 1 | . . . 1 Misfires 1 | . . . 1 Overload Shots . | . . . . Overflow Damage . | . . . . Projectiles . | . . . . Explosions . | . . . . Melee . | . . . . Knockbacks . | . . . . Impact . | . . . . Kinetic . | . . . . Secondary . | . . . . Self-Inflicted Damage . | . . . . Shots . | . . . . Rammed . | . . . . Targets Rammed . | . . . . Kicked . | . . . . Crushed . | . . . . Highest Temperature 105 | . 2 105 . Average Temperature 32 | . 2 43 . Received Heat Transfer 153 | . 69 36 48 Siege Activations . | . . . . Martial Activations . | . . . . Shielding Activations . | . . . . Robots Disrupted . | . . . . Combat Hostiles . | . . . . Robots Corrupted . | . . . . Combat Hostiles . | . . . . Parts Fried . | . . . . Impact Corruptions . | . . . . Robots Melted . | . . . . Combat Hostiles . | . . . . Parts Melted . | . . . . Heat Transferred . | . . . . Parts Sabotaged . | . . . . Parts Stolen . | . . . . Parts Stripped . | . . . . Power Chain Reactions . | . . . . Alert | -11 -10 -10 -10 ------- Run | Yrd Mat Min Sub Maximum Alert Level . | . . . . Low Security (%) 100 | 100 100 100 . Level 1 . | . . . . Level 2 . | . . . . Level 3 . | . . . . Level 4 . | . . . . Level 5 . | . . . . High Security . | . . . . Max Security . | . . . . Peak Influence 91 | . 91 62 . Initial 22 | . . 22 . Average 23 | . 35 13 . Influence Increases 387 | . 262 125 . Destroy 0b10 Robot/C 280 | . 180 100 . Destroy 0b10 Robot/NC 15 | . 15 . . Destroy Leader 66 | . 46 20 . Successful Hack 26 | . 21 5 . Influence Decreases 387 | . 203 184 . Entered New Map 37 | . . 37 . Time Decay 330 | . 203 127 . Lost Part 20 | . . 20 . Squads Dispatched . | . . . . Investigation . | . . . . Extermination . | . . . . Reinforcement . | . . . . Assault . | . . . . Garrison . | . . . . Intercept . | . . . . Searches Triggered . | . . . . Construction Impeded . | . . . . Haulers Reinforced . | . . . . Active Scanning Responses . | . . . . Cargo Convoy Interrupts . | . . . . Stealth | -11 -10 -10 -10 --------- Run | Yrd Mat Min Sub Distress Signals . | . . . . Communications Jammed . | . . . . Distress Signals . | . . . . Times Spotted 25 | . 14 5 6 Peak Tracking Total 4 | . 4 2 4 Tactical Retreats . | . . . . Traps | -11 -10 -10 -10 ------- Run | Yrd Mat Min Sub Traps Triggered 3 | . 3 . . Indirectly . | . . . . Trap Hack Attempts . | . . . . Triggered . | . . . . Disarmed . | . . . . Reprogrammed . | . . . . Reused . | . . . . Traps Extracted . | . . . . Installed . | . . . . Triggered . | . . . . Machines | -11 -10 -10 -10 ---------- Run | Yrd Mat Min Sub Machines Disabled . | . . . . Max in Single Turn . | . . . . Machines Repaired . | . . . . Machines Dismantled . | . . . . Machines Sabotaged . | . . . . Overloaded Fab Kills . | . . . . Hacking | -11 -10 -10 -10 --------- Run | Yrd Mat Min Sub Machines Accessed 8 | . 7 1 . Terminals 8 | . 7 1 . Fabricators . | . . . . Repair Stations . | . . . . Recycling Units . | . . . . Scanalyzers . | . . . . Garrison Access . | . . . . Total Hacks 22 | . 19 3 . Successful 8 | . 7 1 . Failed 14 | . 12 2 . Catastrophic 2 | . 2 . . Database Lockouts . | . . . . Manual 18 | . 17 1 . Terminals 22 | . 19 3 . Fabricators . | . . . . Repair Stations . | . . . . Recycling Units . | . . . . Scanalyzers . | . . . . Garrison Access . | . . . . Terminal Hacks 2 | . 2 . . Branch Access Points 1 | . 1 . . Zone Layout 1 | . 1 . . Fabricator Hacks . | . . . . Repair Station Hacks . | . . . . Recycling Unit Hacks . | . . . . Scanalyzer . | . . . . Garrison Access Hacks . | . . . . Unauthorized Hacks 6 | . 5 1 . Terminals 6 | . 5 1 . Botnet 6 | . 5 1 . Fabricators . | . . . . Repair Stations . | . . . . Recycling Units . | . . . . Scanalyzers . | . . . . Garrison Access . | . . . . Data Cores Recovered . | . . . . Used . | . . . . Hacking Detections 8 | . 7 1 . Full Trace Events . | . . . . Feedback Events . | . . . . Feedback Blocked . | . . . . Robot Schematics Acquired . | . . . . Robots Built . | . . . . Authchips . | . . . . Time . | . . . . Total Robot Build Rating . | . . . . Part Schematics Acquired . | . . . . Parts Built . | . . . . Authchips . | . . . . Time . | . . . . Total Part Build Rating . | . . . . Part Studies Acquired . | . . . . Parts Repaired . | . . . . Time . | . . . . Parts Recycled . | . . . . Recycled Matter . | . . . . Retrieved Matter . | . . . . Retrieved Components . | . . . . Parts Scanalyzed . | . . . . Part Schematics Acquired . | . . . . Parts Damaged . | . . . . Bothacking | -11 -10 -10 -10 ------------ Run | Yrd Mat Min Sub Used RIF Installer . | . . . . Robots Hacked . | . . . . Non-combat . | . . . . Combat . | . . . . Robot Hacks Applied . | . . . . Relay Couplers Released . | . . . . Fabnet Peak Effective % . | . . . . Robots Rewired . | . . . . Allies Hacked . | . . . . Hacks Repelled . | . . . . Allies | -11 -10 -10 -10 -------- Run | Yrd Mat Min Sub Total Allies . | . . . . Largest Group . | . . . . Highest-Rated Group . | . . . . Highest-Rated Ally . | . . . . Total Orders . | . . . . Ally Attacks . | . . . . Total Damage . | . . . . Kills . | . . . . Allies Corrupted . | . . . . Allies Melted . | . . . . Intel | -11 -10 -10 -10 ------- Run | Yrd Mat Min Sub Active Infowar (turns) 776 | . . 570 206 Terrain 776 | . . 570 206 Robot Analysis Total . | . . . . Derelict Logs Recovered 1 | . . 1 . Drone Launches . | . . . . Drone Recoveries . | . . . . Exploration | -11 -10 -10 -10 ------------- Run | Yrd Mat Min Sub Turns Passed 1471 | 66 629 570 206 Spaces Moved 1166 | 55 480 490 141 Core 1 | 1 . . . Treads . | . . . . Legs . | . . . . Wheels 1165 | 54 480 490 141 Hover . | . . . . Flight . | . . . . Fastest Speed 50 | 50 90 100 100 Average Speed 101 | 89 101 102 101 Slowest Speed 115 | 90 105 105 115 Overloaded Moves . | . . . . Propulsion Burnouts . | . . . . Robots Hopped . | . . . . Potential Cave-ins . | . . . . Cave-ins Triggered . | . . . . Exploration Rate (%) 49 | 4 88 96 11 Regions Visited 3 Branch Regions 2 Pre-discovered Areas 2 | . . 1 1 Known Exits Taken 1 | . 1 . . Unknown Exits Taken 2 | 1 . 1 . Scrap Searched 1 | . . 1 . Spaces Dug . | . . . . Terrain Destroyed . | . . . . Melee . | . . . . Projectile . | . . . . AOE . | . . . . Terrain Rammed . | . . . . Walls Destroyed . | . . . . Machines Disabled . | . . . . Actions | -11 -10 -10 -10 --------- Run | Yrd Mat Min Sub Total 1335 | 68 559 542 166 Wait 79 | 4 39 36 . Move 1163 | 54 479 489 141 Hop . | . . . . Pick Up 18 | 4 7 4 3 Fast Attach 7 | 6 1 . . Attach 7 | . . 4 3 Detach 1 | . 1 . . Swap . | . . . . Drop . | . . . . Fire 60 | . 32 9 19 Melee . | . . . . Ram . | . . . . Kick . | . . . . Crush . | . . . . Escape Stasis . | . . . . Rewire . | . . . . Trap . | . . . . Miscellaneous . | . . . . Route ------- -11/Scrapyard -10/Materials (discovered 3 exits: [*Mat x2] / *Min) -10/Mines (discovered 4 exits: [*Mat x2] / [*Exi] / [*Sub]) -10/Subcaves History --------- Turn | Location | Event 10 | -11/Scrapyard | Discovered new exit (range 15) 67 | -11/Scrapyard | Entered Materials 173 | -10/Materials | Discovered new exit (range 15) 318 | -10/Materials | Build established: Mutant 504 | -10/Materials | Discovered new exit (range 16) 554 | -10/Materials | Identified exit to Mines 696 | -10/Materials | Entered Mines 727 | -10/Mines | Discovered new exit (range 6) 781 | -10/Mines | Deemed a non-threat by the Exiles lab entrance 781 | -10/Mines | Discovered new exit (range 5) 822 | -10/Mines | Received a Rocket Launcher from a helpful Derelict 958 | -10/Mines | Core integrity fell below 50% 966 | -10/Mines | Discovered new exit (range 8) 1222 | -10/Mines | Learned location of Storage (-7) 1261 | -10/Mines | Discovered new exit (range 6) 1266 | -10/Mines | Entered Subcaves 1267 | -10/Subcaves | Approached by a straggling Scientist 1283 | -10/Subcaves | Learned location of Zion (-7) 1283 | -10/Subcaves | Met a Zionite searching for "candidates" 1436 | -10/Subcaves | Core integrity fell below 20% 1456 | -10/Subcaves | Lost 3 parts (1p1n1w) 1472 | -10/Subcaves | Destroyed by HT-WWU(R) with Subdweller Laser Last Messages --------------- System corrupted: Assault Rifle misfires. Flight Unit fries itself beyond repair. Com. Wheel destroyed. System corrupted: Matter fused (-8). 51-EDU(c): "I think it's somewhere north of here" Assault Rifle destroyed. Lgt. Ion Engine destroyed. System corrupted: Matter fused (-5). PK-JB0(R) destroyed. J6-NOD(R) destroyed. Acquired 29 matter. Acquired 40 matter. Acquired 10 matter. Acquired 2 matter. 51-EDU(c) suffers critical hit (Destroy). Acquired Sub. Monowheel. HT-WWU(R) affixes Scrap Shield Fragment to Scrap Shield. Com. Wheel destroyed. Map ----- +----------------------------------------------------+ | ?????????????????????????????????????????????????? | | ???????????????#?????????????????????????????????? | | ????????????????????????????????????????????????? | | ????????#??????????????????????????????????????? | | ???????????????????????????????????????????????? | | ???????????????????????????????????????????????? | | ????????#???####???????????????????????????????? | | #???????????## #???????????????????????????????? | | ???????????# #???????????????????????????????? | | ##?????????## #??????#?????????????????????????? | | ####?#????# ##?####????#??????????????????????? | | ###??### #???" "?##"??????????????????????? | | #?## #???? ##""??????????????????????? | | ! ### ##????? #"" ??????????????????????? | | &% #???? ? %" #????? ????????????????? | | % [ #??????? " #??????????????????????? | | *&! ##????????%%"#??#???????????????????? | | ## ## #?????? ? # #? ??????????????????? | | ## #####?#??? ???#% ##"" #?????????????????? | | # # #????????????## """#""#????????????????? | | ## ###????#?##???# ""#""" #????????????????? | | ?### # #???????# ###?#=" "" #??? ?????????????? | | ???### ##????## #??## #"###?????????????????? | | ??##?# ##### #??#[!R###?#?? ?????????????? | | ?????# ## #?### "#?????????#??????????? | | ?????# #??#####@"##??? ????????????????? | | ##???## ##?##" ""#?????????????????????? | | #???### #?##" ### ""#???? ??????????? | | #?????# ##?# ""#???????????????? | | ????????# #### ##???????????????? | | ????????# ## R #????????????????? | | #????#??# ### #### ?????????????? | | ?#??????###?#### ###?### ????????????? | | ???????????????#########?????? #????????????? | | ????????????????##????????????? ##????????????? | | ???????????????????????????#?? #?????????????? | | ???????????????????#????????#???? #?????????????? | | ?????????????????????????????????? ?????????????? | | ?????????????????????????????????????????????????? | | ?????????????????????????????????????????????????? | | ?????????????????????????????????????????????????? | | ?????????????????????????????????????????????????? | | ?????????????????????????????????????????????????? | | ???????????????????#?????????????????????????????? | | ?????????????????????????????????????????????????? | | ?????????????????????????????????????????????????? | | ?????????????????????????????????????????????????? | | ?????????????????????????????????????????????????? | | ?????????????????????????????????????????????????? | | ?????????????????????????????????????????????????? | +----------------------------------------------------+ Best States ------------- Heat Dissipation 25 Energy Generation 14 Energy Capacity 250 Matter Stores 300 Matter Capacity 300 Sight Range 16 Terrain Scan Range 14 Terrain Scan Density 10 Evasion (%) 42 Item Schematics ----------------- None Robot Schematics ------------------ None Fabricated ------------ Nothing Repaired ---------- Nothing Studied --------- None Alien Tech Used ----------------- None Achievements -------------- None Challenges ------------ None Game ------ Seed WeaponThrowingWall Manual? 0 Play Time 00:11:11 Cumulative 107.2 hours Start 2026.04.05 @ 13:05:17 End 2026.04.05 @ 13:14:58 Sessions 1 Manual Loads 0 Difficulty Rogue Special Mode None Game No. 123 Rogue 123 Adventurer 0 Explorer 0 Win Type - Total 1 Types 1/0/0/0/0/0/0/0/0/0 Lore% 73 Gallery% 54 Achievement% 39 Wizard Run 0 Options --------- Layout 1 ASCII 0 Keyboard 0 Movement Mouse Keybinds 0 Fullscreen 2 Font 24/Smallcaps Map View 50x35 Zoom Use 0% Tactical HUD 0 Map Filters NONE Filters NONE Steam 1 RUN: bf87b814-612b-4489-ad2a-227c8fd0fc0a